Cogmind - Beta 17.1 @@@ ROGUE MODE // 2026.09.22 @ 17:36:29 Player: Caluan Result: Destroyed by 5S-SGS(j) with Overtuned Pulse Rifle Performance ------------- Evolutions (0) 0 Regions Visited (4) 800 Robots Destroyed (29) 145 Value Destroyed (936) 936 Prototype IDs (1) 20 Alien Tech Used (0) 0 Bonus (300) 300 TOTAL SCORE: 2201 Bonus ------- Registered with UFD 300 Cogmind --------- Core Integrity 0/250 Matter 300/300 Energy 48/250 System Corruption 1% Temperature Cool (36) Movement Treading (245) Ox1 Location -7/Scraptown Parts ------- > --- POWER (1) -------- Ion Engine > --- PROPULSION (2) --- Improved Treads Armored Treads > --- UTILITY (2) ------ High-capacity Storage Unit > --- WEAPON (2) ------- Junk Cannon > --- INVENTORY (20) --- Light Ion Engine Improved Treads Medium Treads Wheel Huge Storage Unit High-capacity Matter Pod (200) Makeshift Hacking Suite Shock Rifle Light Assault Rifle Shotgun Minigun Grenade Launcher Heavy Rocket Launcher Datajack Hammer Makeshift Hammer Scrap Shield Fragment (48) Scrap Shield Fragment (45) Peak State ------------ > --- POWER ------------ Ion Engine > --- PROPULSION ------- Improved Treads Armored Treads > --- UTILITY ---------- High-capacity Storage Unit Seismic Detector > --- WEAPON ----------- Junk Cannon > --- INVENTORY -------- Light Ion Engine Wheel Huge Storage Unit High-capacity Matter Pod Makeshift Hacking Suite Shock Rifle Light Assault Rifle Shotgun Minigun Grenade Launcher Heavy Rocket Launcher Datajack Hammer Makeshift Hammer Scrap Shield Fragment Scrap Shield Fragment [Rating: 23] Favorites ----------- Power Ion Engine Engine Ion Engine Propulsion Light Treads Treads Light Treads Wheel Wheel Utility High-capacity Storage Unit Device Seismic Detector Storage High-capacity Storage Unit Processor Targeting Computer Weapon EM Pulse Gun Energy Gun EM Pulse Gun Energy Cannon Beam Cannon Ballistic Gun Light Assault Rifle Launcher Grenade Launcher Special Weapon Junk Cannon Build | -11 -10 -10 -7 -7 ------- Run | Yrd Mat Sub Rec Scr Slots Evolved . | . . . . . Power . | . . . . . Propulsion . | . . . . . Utility . | . . . . . Weapon . | . . . . . Parts Attached 25 | 5 9 7 1 3 Power 5 | 1 2 2 . . Engine 5 | 1 2 2 . . Core . | . . . . . Reactor . | . . . . . Propulsion 6 | 2 . 2 . 2 Treads 4 | 2 . . . 2 Leg . | . . . . . Wheel 2 | . . 2 . . Hover . | . . . . . Flight . | . . . . . Utility 5 | 1 3 1 . . Device 1 | . . 1 . . Storage 3 | 1 2 . . . Processor 1 | . 1 . . . Hackware . | . . . . . Protection . | . . . . . Artifact . | . . . . . Weapon 9 | 1 4 2 1 1 Energy Gun 3 | . 3 . . . Energy Cannon 1 | . 1 . . . Ballistic Gun 3 | 1 . 1 1 . Ballistic Cannon . | . . . . . Launcher 1 | . . 1 . . Special Weapon 1 | . . . . 1 Impact Weapon . | . . . . . Slashing Weapon . | . . . . . Piercing Weapon . | . . . . . Special Melee Weapon . | . . . . . Unidentified Prototypes 1 | . . . . 1 Parts Lost 11 | . 2 8 . 1 Power 2 | . . 2 . . Propulsion 2 | . . 2 . . Utility 2 | . . 1 . 1 Weapon 5 | . 2 3 . . Highest Loss Streak 7 | . 1 7 . 1 To Critical Strikes 1 | . . 1 . . Average Backups 9 | 2 5 7 8 13 Power 1 | . 2 3 2 1 Propulsion . | . . . . 1 Utility 2 | . 1 1 1 2 Weapon 4 | 1 2 2 3 7 Tool/Special . | . . . . . Unused Backups 13 | . . . . 13 Power 2 | . . . . 2 Propulsion 2 | . . . . 2 Utility 3 | . . . . 3 Weapon 5 | . . . . 5 Tool/Special 1 | . . . . 1 Average Slot Usage (%) 91 | . 97 68 95 89 Engine 13 | . 14 9 14 14 Treads 17 | . 28 3 . 13 Wheel 10 | . . 15 28 14 Device 8 | . . 4 14 14 Storage 14 | . 14 14 14 14 Processor 4 | . 11 2 . . Energy Gun 5 | . 13 1 . . Energy Cannon 2 | . 7 3 . . Ballistic Gun 6 | . 7 11 10 4 Launcher 3 | . . 2 14 4 Special Weapon 4 | . . . . 9 Peak Build Rating 23 | 5 8 9 11 23 Average Rating 12 | 3 7 6 9 18 On Entrance 6 | . 5 8 8 11 Avg Prop Armor Cover (%) 4 | . . . . 4 Naked Turns . | . . . . . Heaviest Build 60 | 11 50 50 52 60 Greatest Support 43 | 40 40 40 30 43 Greatest Overweight (x) 13 | . 1 13 1 5 Average Overweight (x) 1 | . . 1 1 1 Largest Inventory Capacity 20 | 8 20 20 20 20 Average Capacity 16 | 7 11 20 20 20 Most Carried 18 | 4 10 10 12 18 Average Carried 11 | 2 5 8 10 15 Final Capacity 20 | 8 20 20 20 20 Final Carried 18 | 3 10 8 12 18 Class Distribution -------------------- 100% | Mutant Dominant Class ---------------- Mutant | -10/Materials Mutant | -10/Subcaves Mutant | -7/Recycling Mutant | -7/Scraptown Resources | -11 -10 -10 -7 -7 ----------- Run | Yrd Mat Sub Rec Scr Matter Collected 787 | 195 366 62 125 39 Remotely . | . . . . . Salvage Created 1021 | . 526 69 . 426 Parts 51 | . 30 5 . 16 Haulers Intercepted . | . . . . . Recyclers Shooed . | . . . . . Parts Field Recycled . | . . . . . Retrieved Matter . | . . . . . Parts Self-Destructed 2 | . . 2 . . Prevented . | . . . . . Parts Restored . | . . . . . Kills | -11 -10 -10 -7 -7 ------- Run | Yrd Mat Sub Rec Scr Combat Hostiles Destroyed 26 | . 13 6 . 7 Guns 11 | . 10 1 . . Cannons 9 | . 3 1 . 5 AOE 4 | . . 4 . . Classes Destroyed 8 | . 4 1 . 3 Turret 2 | . . 2 . . Watcher 1 | . 1 . . . Swarmer 7 | . 3 4 . . Grunt 9 | . 9 . . . Subdweller 3 | . 1 2 . . Ranger 1 | . . . . 1 Guru 1 | . . . . 1 Scrapper 4 | . . . . 4 Thug 1 | . . . . 1 Best Kill Streak 6 | . 4 6 . 5 Combat Bots Only 5 | . 4 4 . 5 Max Kills in Single Turn 3 | . 1 3 . 1 Gunslinging . | . . . . . Exploded 3 | . . 3 . . Melee . | . . . . . Uniques/NPCs Destroyed . | . . . . . Combat | -11 -10 -10 -7 -7 -------- Run | Yrd Mat Sub Rec Scr Hostile Shots Fired 180 | . 49 95 . 36 Missed 48 | . 9 33 . 6 Hits 132 | . 40 62 . 30 Projectile 132 | . 40 62 . 30 Critical Strikes 2 | . 1 1 . . Damage Taken 1709 | . 506 794 . 409 Core 262 | . 32 185 . 45 Absorbed by Shields . | . . . . . Core Remaining (%) 100 | 100 . . . . Volleys Fired 90 | . 48 30 . 12 Largest 2 | . 2 2 . 1 Hottest 100 | . 100 100 . . Shots Fired 152 | . 93 47 . 12 Gun 106 | . 79 27 . . Cannon 25 | . 14 11 . . Launcher 9 | . . 9 . . Special 12 | . . . . 12 Kinetic 60 | . 34 26 . . Thermal 25 | . 14 11 . . Explosive 9 | . . 9 . . Electromagnetic 46 | . 45 1 . . Impact 12 | . . . . 12 Robot Hit Streak 13 | . 10 13 . 6 Robot Miss Streak 3 | . 3 2 . 1 Penetration Max . | . . . . . Secondary Targets 2 | . 2 . . . Max Gunslinging Chain 1 | . 1 . . . Shots Hit Robots 105 | . 62 33 . 10 Core Hits 48 | . 27 17 . 4 Critical Kills . | . . . . . Critical Parts Destroyed 1 | . . . . 1 Critical Strikes 1 | . . . . 1 Smash 1 | . . . . 1 Melee Attacks . | . . . . . Impact . | . . . . . Slashing . | . . . . . Piercing . | . . . . . Sneak Attacks . | . . . . . Combat Hostiles . | . . . . . Follow-up Attacks . | . . . . . Damage Inflicted 2564 | 5 758 988 . 813 Guns 967 | . 600 367 . . Cannons 300 | . 139 161 . . Explosions 460 | . . 460 . . Melee . | . . . . . Ramming 24 | 5 19 . . . Kinetic 545 | . 190 355 . . Thermal 300 | . 139 161 . . Explosive 460 | . . 460 . . Electromagnetic 422 | . 410 12 . . Impact 813 | . . . . 813 Slashing . | . . . . . Piercing . | . . . . . Highest Corruption 1 | . . . . 1 Average Corruption 1 | . . . . 1 Corruption Purged . | . . . . . Corruption Blocked . | . . . . . Effects 1 | . . . . 1 Matter Fused 1 | . . . . 1 Overload Shots . | . . . . . Overflow Damage 265 | . . 13 . 252 Projectiles 252 | . . . . 252 Explosions 13 | . . 13 . . Melee . | . . . . . Knockbacks 7 | . 1 . . 6 Impact 5 | . 1 . . 4 Kinetic . | . . . . . Secondary 2 | . . . . 2 Self-Inflicted Damage . | . . . . . Shots . | . . . . . Rammed 2 | 1 1 . . . Targets Rammed 3 | 1 2 . . . Kicked . | . . . . . Crushed 1 | . 1 . . . Highest Temperature 234 | . 234 . . 8 Average Temperature 60 | . 61 . . 5 Received Heat Transfer 729 | . 237 324 . 168 Siege Activations . | . . . . . Martial Activations . | . . . . . Shielding Activations . | . . . . . Robots Disrupted . | . . . . . Combat Hostiles . | . . . . . Robots Corrupted 2 | . . . . 2 Combat Hostiles 2 | . . . . 2 Parts Fried 3 | . . . . 3 Impact Corruptions 6 | . . . . 6 Robots Melted . | . . . . . Combat Hostiles . | . . . . . Parts Melted 4 | . 1 2 . 1 Heat Transferred 629 | . 296 333 . . Parts Sabotaged . | . . . . . Parts Stolen . | . . . . . Parts Stripped . | . . . . . Power Chain Reactions . | . . . . . Alert | -11 -10 -10 -7 -7 ------- Run | Yrd Mat Sub Rec Scr Maximum Alert Level . | . . . . . Low Security (%) 100 | 100 100 . 100 . Level 1 . | . . . . . Level 2 . | . . . . . Level 3 . | . . . . . Level 4 . | . . . . . Level 5 . | . . . . . High Security . | . . . . . Max Security . | . . . . . Peak Influence 85 | . 85 . 43 . Initial 43 | . . . 43 . Average 22 | . 26 . 9 . Influence Increases 472 | . 352 120 . . Destroy 0b10 Robot/C 360 | . 240 120 . . Destroy 0b10 Robot/NC 5 | . 5 . . . Destroy Leader 62 | . 62 . . . Disable Machine 30 | . 30 . . . Lose Combat Pursuer 15 | . 15 . . . Influence Decreases 472 | . 352 30 90 . Entered New Map 47 | . . . 47 . Time Decay 405 | . 342 20 43 . Lost Part 20 | . 10 10 . . Squads Dispatched 4 | . 4 . . . Investigation 2 | . 2 . . . Extermination . | . . . . . Reinforcement 2 | . 2 . . . Assault . | . . . . . Garrison . | . . . . . Intercept . | . . . . . Searches Triggered . | . . . . . Construction Impeded . | . . . . . Haulers Reinforced . | . . . . . Active Scanning Responses . | . . . . . Cargo Convoy Interrupts . | . . . . . Stealth | -11 -10 -10 -7 -7 --------- Run | Yrd Mat Sub Rec Scr Distress Signals 2 | . 2 . . . Communications Jammed . | . . . . . Distress Signals . | . . . . . Times Spotted 55 | . 29 8 . 18 Peak Tracking Total 18 | . 6 6 . 18 Tactical Retreats 2 | . 2 . . . Traps | -11 -10 -10 -7 -7 ------- Run | Yrd Mat Sub Rec Scr Traps Triggered 2 | . 2 . . . Indirectly . | . . . . . Trap Hack Attempts . | . . . . . Triggered . | . . . . . Disarmed . | . . . . . Reprogrammed . | . . . . . Reused . | . . . . . Traps Extracted . | . . . . . Installed . | . . . . . Triggered . | . . . . . Machines | -11 -10 -10 -7 -7 ---------- Run | Yrd Mat Sub Rec Scr Machines Disabled 6 | . 2 3 . 1 Max in Single Turn 2 | . 1 2 . 1 Machines Repaired . | . . . . . Machines Dismantled . | . . . . . Machines Sabotaged . | . . . . . Overloaded Fab Kills . | . . . . . Hacking | -11 -10 -10 -7 -7 --------- Run | Yrd Mat Sub Rec Scr Machines Accessed 7 | . 5 . 1 1 Terminals 6 | . 5 . 1 . Fabricators . | . . . . . Repair Stations . | . . . . . Recycling Units . | . . . . . Scanalyzers . | . . . . . Garrison Access . | . . . . . Total Hacks 12 | . 9 . 1 2 Successful 5 | . 3 . . 2 Failed 7 | . 6 . 1 . Catastrophic 2 | . 1 . 1 . Database Lockouts . | . . . . . Manual 9 | . 8 . 1 . Terminals 10 | . 9 . 1 . Fabricators . | . . . . . Repair Stations . | . . . . . Recycling Units . | . . . . . Scanalyzers . | . . . . . Garrison Access . | . . . . . Terminal Hacks 2 | . . . . 2 Record 1 | . . . . 1 Open Door 1 | . . . . 1 Fabricator Hacks . | . . . . . Repair Station Hacks . | . . . . . Recycling Unit Hacks . | . . . . . Scanalyzer . | . . . . . Garrison Access Hacks . | . . . . . Unauthorized Hacks 3 | . 3 . . . Terminals 3 | . 3 . . . Track 1 | . 1 . . . Botnet 2 | . 2 . . . Fabricators . | . . . . . Repair Stations . | . . . . . Recycling Units . | . . . . . Scanalyzers . | . . . . . Garrison Access . | . . . . . Data Cores Recovered . | . . . . . Used . | . . . . . Hacking Detections 6 | . 5 . 1 . Full Trace Events 1 | . 1 . . . Feedback Events . | . . . . . Feedback Blocked . | . . . . . Robot Schematics Acquired . | . . . . . Robots Built . | . . . . . Authchips . | . . . . . Time . | . . . . . Total Robot Build Rating . | . . . . . Part Schematics Acquired . | . . . . . Parts Built . | . . . . . Authchips . | . . . . . Time . | . . . . . Total Part Build Rating . | . . . . . Part Studies Acquired . | . . . . . Parts Repaired . | . . . . . Time . | . . . . . Parts Recycled . | . . . . . Recycled Matter . | . . . . . Retrieved Matter . | . . . . . Retrieved Components . | . . . . . Parts Scanalyzed . | . . . . . Part Schematics Acquired . | . . . . . Parts Damaged . | . . . . . Bothacking | -11 -10 -10 -7 -7 ------------ Run | Yrd Mat Sub Rec Scr Used RIF Installer . | . . . . . Robots Hacked . | . . . . . Non-combat . | . . . . . Combat . | . . . . . Robot Hacks Applied . | . . . . . Relay Couplers Released . | . . . . . Fabnet Peak Effective % . | . . . . . Robots Rewired . | . . . . . Allies Hacked . | . . . . . Hacks Repelled . | . . . . . Allies | -11 -10 -10 -7 -7 -------- Run | Yrd Mat Sub Rec Scr Total Allies . | . . . . . Largest Group . | . . . . . Highest-Rated Group . | . . . . . Highest-Rated Ally . | . . . . . Total Orders . | . . . . . Ally Attacks . | . . . . . Total Damage . | . . . . . Kills . | . . . . . Allies Corrupted . | . . . . . Allies Melted . | . . . . . Intel | -11 -10 -10 -7 -7 ------- Run | Yrd Mat Sub Rec Scr Active Infowar (turns) 1934 | . . 66 238 1630 Seismic 1934 | . . 66 238 1630 Robot Analysis Total . | . . . . . Derelict Logs Recovered 2 | . . . . 2 Drone Launches . | . . . . . Drone Recoveries . | . . . . . Exploration | -11 -10 -10 -7 -7 ------------- Run | Yrd Mat Sub Rec Scr Turns Passed 3339 | 77 1208 186 238 1630 Spaces Moved 1849 | 43 535 78 208 985 Core 7 | 5 . 2 . . Treads 866 | 38 535 2 . 291 Legs . | . . . . . Wheels 976 | . . 74 208 694 Hover . | . . . . . Flight . | . . . . . Fastest Speed 50 | 50 160 107 107 107 Average Speed 153 | 147 171 126 107 155 Slowest Speed 700 | 160 240 700 107 320 Overloaded Moves . | . . . . . Propulsion Burnouts . | . . . . . Robots Hopped . | . . . . . Potential Cave-ins . | . . . . . Cave-ins Triggered . | . . . . . Exploration Rate (%) 42 | 3 81 6 43 78 Regions Visited 4 Branch Regions 3 Pre-discovered Areas . | . . . . . Known Exits Taken . | . . . . . Unknown Exits Taken 4 | 1 1 1 1 . Scrap Searched 6 | . . . . 6 Spaces Dug . | . . . . . Terrain Destroyed 8 | . . 8 . . Melee . | . . . . . Projectile . | . . . . . AOE 8 | . . 8 . . Terrain Rammed . | . . . . . Walls Destroyed . | . . . . . Machines Disabled . | . . . . . Actions | -11 -10 -10 -7 -7 --------- Run | Yrd Mat Sub Rec Scr Total 2207 | 56 738 118 223 1072 Wait 201 | . 129 . 10 62 Move 1845 | 42 534 77 207 985 Hop . | . . . . . Pick Up 35 | 8 12 3 5 7 Fast Attach 3 | . 1 2 . . Attach 15 | 5 3 5 1 1 Detach 2 | . . . . 2 Swap 8 | . 5 1 . 2 Drop 5 | . 4 . . 1 Fire 90 | . 48 30 . 12 Melee . | . . . . . Ram . | . . . . . Kick . | . . . . . Crush 3 | 1 2 . . . Escape Stasis . | . . . . . Rewire . | . . . . . Trap . | . . . . . Miscellaneous . | . . . . . Route ------- -11/Scrapyard -10/Materials (discovered 3 exits: [*Mat x2] / [*Sub]) -10/Subcaves (discovered 2 exits: [*Mat] / *Rec) -7/Recycling -7/Scraptown (discovered 1 exit: [*Fac]) History --------- Turn | Location | Event 4 | -11/Scrapyard | Discovered new exit (range 15) 78 | -11/Scrapyard | Entered Materials 300 | -10/Materials | Build established: Mutant 500 | -10/Materials | Discovered new exit (range 11) 730 | -10/Materials | Discovered new exit (range 15) 778 | -10/Materials | Derelicts attacked the area 1270 | -10/Materials | Discovered new exit (range 8) 1286 | -10/Materials | Entered Subcaves 1287 | -10/Subcaves | Approached by a straggling Scientist 1291 | -10/Subcaves | Ambushed by Subdwellers from Twisted Machinery 1346 | -10/Subcaves | Core integrity fell below 50% 1372 | -10/Subcaves | Lost 7 parts (1p2n1u3w) 1411 | -10/Subcaves | Discovered new exit (range 14) 1436 | -10/Subcaves | Discovered new exit (range 14) 1455 | -10/Subcaves | Core integrity fell below 20% 1472 | -10/Subcaves | Entered Recycling 1684 | -7/Recycling | Scanned before Scraplab entrance 1699 | -7/Recycling | Entered Scraplab 1708 | -7/Recycling | Discovered new exit (range 2) 1710 | -7/Recycling | Entered Scraptown 1838 | -7/Scraptown | Visited UFD Registry 1838 | -7/Scraptown | Registered with UFD as "Shadowslicer" 1851 | -7/Scraptown | Visited Cyclists 1899 | -7/Scraptown | Scanned Subdweller tech in exchange for log data 1901 | -7/Scraptown | Learned Research terminal intel 1902 | -7/Scraptown | Learned Research stockpile data 1914 | -7/Scraptown | Discovered new exit (range 13) 1944 | -7/Scraptown | Guru changed UFD alias to "Plasmamaster" 2212 | -7/Scraptown | Visited Junk Cannon Lab 2225 | -7/Scraptown | Found Prototype Special Weapon 2226 | -7/Scraptown | Identified Junk Cannon 2246 | -7/Scraptown | Visited Chapter 10 2445 | -7/Scraptown | Visited Scrap Suit Storage 2507 | -7/Scraptown | Visited DA-N13 Charitable Foundation 2515 | -7/Scraptown | Found DCF Scrap (31 items) 2603 | -7/Scraptown | Visited Sword Containment 2819 | -7/Scraptown | Visited Junk Repository 3098 | -7/Scraptown | Visited Spacefarers 3115 | -7/Scraptown | Visited Red Mages 3182 | -7/Scraptown | Attacked by Scraptown defenders 3340 | -7/Scraptown | Destroyed by 5S-SGS(j) with Overtuned Pulse Rifle Last Messages --------------- Plasmamaster!" 03334_ Destroyed Mak. Salvage Targeting Computer. 03334_ 1S-XJD(j) system corrupted by crushing effect. 03335_ Siege Slug penetrates Machine. 03336_ Destroyed Mak. Microdissipator Network. 03336_ 1S-XJD(j) system corrupted by crushing effect. 03336_ 1S-XJD(j) knocked back. 03337_ 1S-XJD(j) system terminally corrupted. 03337_ Bolt penetrates 5S-SGS(j). 03338_ Junk Cannon collects and crushes Corrupted Scrap Suit (+5 shots). 03338_ Triborg exits siege mode. 03338_ 5S-SGS(j) knocked back. 03339_ G3-I23(j) cannibalizes Ovr. Titanium Leg to repair Ovr. Titanium Leg. 03340_ 6N-IEO(j): "How dare you!" 03340_ Seismic Detector destroyed. Map ----- +----------------------------------------------------+ | ?????####### " "#?????????####??# # "" | | ????"""""""" """" ""#???????????????# " | | ??"""""""" " #### ###???????????????# # " | | ??"" " " #### ###???????????????# # " | | ???""" " """" ""#???????????????# #?" | | ??""" " "#???????????????# #?"" | | ???"""""" " " "" "#????????###????# #??"""" | | ???"" " " "" "#????????""""???# #?????? | | ???"""" " " "#???????? " "???# #?????? | | ???""" " " ""#???????? ??# #?????? | | ????"""" " " """""#???????? """ ??# #?????? | | ???""" " """""""#???????? """ ?# #?????? | | ???"" " " """""""????????# """ ?# #?????? | | ???""""" " ######?????????# """ # ####### | | ???"" " #??????????????# """ # | | ???""""" " #???X""#???????# | | ??""" "" " #?? "#??" " # | | ?#"" #" "#?? ""##""""" # | | ??"""" " #" "#???????######### | | ??"" " #" "#????????## | | ??"" """"""" #" "#????????# TT jj | | ??## ####### #"" """########### r | | ???????????# =% !! h x ###### ######## | | ??????###### ![jj!= r p #??? ?????? | | ???? """"""" #"" """##"j%" ### #?# ???? | | ??" " " "" #" "##""@= "#?# #?# """ ?? | | ?#" " " "" #"" "##""% "#?# #?#""" """ | | ?#" " "" #?" "##"" "#?# #?#"""" " " "" | | ?#" "" #?? " "##"% #?# #?#" """ "" | | ?#" #???" "##" "#?# #??"" """ " | | ?#"" " #?????"##""""""#?# #???" " " | | ??""" "" #???????########?# #???? """"?" "" | | ??"" "" #######??#####???# #????+?##???""? | | ??""" "" """""""#?#"""#???# #?????????????? | | ???""""" """ " "#?#" "#???# #?????????????? | | ???##### ### " """ "#?# #???? #?????????????? | | ??????? ???# " """ "#?# ##### #?????????????? | | ???? ####### " """ "??# ##????????????# | | ??"" """"""" " """ "??# #???????????? | | ?#" " " """ "??# ##????##?????? | | ??? """"" " " """ "??##### ### ##????"""????"" | | ?????"""" " " """ "#?????# #????????"" ""??""" | | ?????""""" """ "####### ######???"" "?#""" | | ?????""""" " " """ "##""""" """""#??#" ""##"" | | ??" """"" " " "##"""$" " "#??#"" ""##"" | | ?#" " """""""##" "#??#"" ""##" | | ??"""""""""" #########""""" """""#??#"" ""##"| | | ?????####### ##??????###### ######??#" ""##"" | | ??????????# ############# #########"" ""##"" " | | ??????????# | +----------------------------------------------------+ Best States ------------- Heat Dissipation 25 Energy Generation 15 Energy Capacity 250 Matter Stores 300 Matter Capacity 300 Sight Range 16 Terrain Scan Density 10 Evasion (%) 40 Targeting Accuracy 5 Recoil Reduction 2 Item Schematics ----------------- None Robot Schematics ------------------ None Fabricated ------------ Nothing Repaired ---------- Nothing Studied --------- None Alien Tech Used ----------------- None Achievements -------------- Longdome?! Challenges ------------ None Game ------ Seed EfficiencyCooledDerivative Manual? 0 Play Time 00:18:16 Cumulative 320.8 hours Start 2026.09.22 @ 17:03:49 End 2026.09.22 @ 17:36:29 Sessions 1 Manual Loads 0 Difficulty Rogue Special Mode None Game No. 358 Rogue 358 Adventurer 0 Explorer 0 Win Type - Total 3 Types 3/0/0/0/0/0/0/0/0/0 Lore% 54 Gallery% 60 Achievement% 47 Wizard Run 0 Options --------- Layout 1 ASCII 0 Keyboard 0 Movement Numpad Keybinds 0 Fullscreen 2 Font 24/Smallcaps Map View 50x35 Zoom Use 0% Tactical HUD 1 Map Filters NONE Filters NONE Steam 1 RUN: ae4ace42-bb0a-4799-b89f-0c7fa61a9002